bitfinex/quotes_SOLUSD_20240818
["timestamp","ask_amount","ask_price","bid_price","bid_amount"]
[1723958024724,0.03,142.0,141.95,2.11679735]
[1723958024908,0.03,142.0,141.94,6.1716576]
[1723958025105,0.03,142.0,141.95,11.47679735]
[1723958025330,0.03,142.0,141.96,2.11679735]
[1723958025512,0.03,142.0,141.94,6.16691213]
[1723958025698,0.03,142.0,141.95,2.11679832]
[1723958025899,0.03,142.0,141.96,2.11679832]
[1723958026102,0.03,142.0,141.94,6.16691213]
[1723958026306,0.03,142.0,141.95,2.11680271]
[1723958026499,0.03,142.0,141.94,6.16691213]
[1723958026699,0.03,142.0,141.95,2.11680885]
[1723958026903,0.03,142.0,141.94,6.16691213]
[1723958027108,0.03,142.0,141.95,2.11680933]
[1723958027319,0.03,142.0,141.94,6.16691213]
[1723958027524,0.03,142.0,141.95,2.11680885]
[1723958027707,0.03,142.0,141.94,6.1691386]
[1723958027917,0.03,142.0,141.95,2.11680823]
[1723958028120,0.03,142.0,141.94,6.1691386]
[1723958028322,0.03,142.0,141.95,2.11680823]
[1723958028515,0.03,142.0,141.94,6.1691386]
[1723958028723,0.03,142.0,141.95,2.11680658]
[1723958028911,9.36,141.99,141.94,6.1691386]
[1723958029117,9.36,141.99,141.95,2.11681731]
[1723958029323,9.36,141.99,141.93,6.1691386]
[1723958029616,9.36,141.99,141.94,8.28595481]
[1723958029822,9.36,141.99,141.95,2.11681621]
[1723958030012,9.36,141.99,141.93,6.1691386]
[1723958030013,9.36,141.99,141.94,6.1691386]
[1723958030218,9.36,141.99,141.95,2.11682701]
[1723958030422,9.36,141.99,141.94,6.1691386]
[1723958030626,9.36,141.99,141.95,2.1168278]
[1723958030823,9.36,141.99,141.94,6.1691386]
[1723958031018,9.36,141.99,141.95,2.11682842]
[1723958031226,9.36,141.99,141.94,6.1691386]
[1723958031433,9.36,141.99,141.95,2.1168278]
[1723958031648,0.03,142.0,141.94,6.1691386]
[1723958031815,0.03,142.0,141.95,2.11682732]
[1723958032144,0.03,142.0,141.94,6.17162624]
[1723958032364,0.03,142.0,141.95,2.11682732]
[1723958032515,0.03,142.0,141.93,6.17162624]
[1723958032716,0.03,142.0,141.94,2.11682842]
[1723958032930,0.03,142.0,141.95,2.11682842]
[1723958033213,0.03,142.0,141.93,6.17162624]
[1723958033415,0.03,142.0,141.94,2.1168278]
[1723958033728,0.03,142.0,141.95,2.1168278]
[1723958033924,0.03,142.0,141.93,6.17162624]
[1723958034227,0.03,142.0,141.94,2.11682622]
[1723958034425,0.03,142.0,141.95,2.11682622]
[1723958034740,0.03,142.0,141.93,6.17162624]
[1723958034918,0.03,142.0,141.9,0.12549]
[1723958035238,0.03,142.0,141.92,19.84407609]
[1723958035439,0.03,142.0,141.93,28.2880062]
[1723958035745,0.03,142.0,141.94,2.11683922]
[1723958035921,0.03,142.0,141.95,2.11683922]
[1723958036232,0.03,142.0,141.93,26.17116698]
[1723958036430,0.03,142.0,141.94,2.11682842]
[1723958036737,0.03,142.0,141.95,2.11682842]
[1723958036935,0.03,142.0,141.93,26.17116698]
[1723958037248,0.03,142.0,141.94,2.11682684]
[1723958037541,0.03,142.0,141.95,2.11682684]
[1723958037740,0.03,142.0,141.93,26.17116698]
[1723958037945,0.03,142.0,141.94,2.11691453]
[1723958038121,0.03,142.0,141.95,2.11691453]
[1723958038442,0.03,142.0,141.93,26.17116698]
[1723958038629,0.03,142.0,141.94,2.11690245]
[1723958038959,0.03,142.0,141.95,2.11690245]
[1723958039118,0.03,142.0,141.93,26.17228183]
[1723958039313,0.03,142.0,141.94,2.11691453]
[1723958039514,0.03,142.0,141.95,2.11691453]
[1723958039734,0.03,142.0,141.93,26.1723794]
[1723958039929,0.03,142.0,141.94,2.11691422]
[1723958040232,0.03,142.0,141.95,2.11691422]
[1723958040427,0.03,142.0,141.93,26.1723794]
[1723958040634,0.03,142.0,141.94,2.11691294]
[1723958040841,0.03,142.0,141.95,2.11691294]
[1723958041046,0.03,142.0,141.93,26.1723794]
[1723958041217,0.03,142.0,141.94,2.11691484]
[1723958041218,9.39,142.0,141.94,2.11691484]
[1723958041422,9.39,142.0,141.93,26.1723794]
[1723958041617,9.39,142.0,141.94,2.11700047]
[1723958041938,9.39,142.0,141.95,2.11700047]
[1723958042141,0.03,142.0,141.93,26.1723794]
[1723958042325,9.39,142.0,141.94,2.11692406]
[1723958042518,9.39,142.0,141.93,26.1723794]
[1723958042519,9.39,142.0,141.95,2.11692406]
[1723958042738,9.39,142.0,141.93,26.1723794]
[1723958042945,9.39,142.0,141.94,2.11691391]
[1723958043128,9.39,142.0,141.95,2.11691391]
[1723958043327,9.39,142.0,141.93,26.1723794]
[1723958043553,9.39,142.0,141.94,2.11691294]
[1723958043730,9.39,142.0,141.95,2.11691294]
[1723958043931,9.39,142.0,141.93,20.0]
[1723958044128,9.39,142.0,141.94,2.11695646]
[1723958044351,9.39,142.0,141.93,20.0]
[1723958044535,9.39,142.0,141.94,2.11700064]
[1723958044742,9.39,142.0,141.93,26.1723794]
[1723958044743,9.39,142.0,141.93,20.0]
[1723958044927,9.39,142.0,141.94,2.11700064]
[1723958045250,9.39,142.0,141.93,20.0]
[1723958045441,9.39,142.0,141.94,2.11699985]
[1723958045646,9.39,142.0,141.93,20.0]
[1723958046050,9.39,142.0,141.94,2.11700095]
[1723958046223,9.39,142.0,141.93,6.1724764]
[1723958046427,9.39,142.0,141.94,2.11700064]
[1723958046669,9.39,142.0,141.93,6.1724764]
[1723958046853,9.39,142.0,141.94,2.11700064]
[1723958047148,9.39,142.0,141.93,6.1724764]
[1723958047356,9.39,142.0,141.94,2.11699985]
[1723958047560,9.39,142.0,141.93,6.1724764]
[1723958047763,14.3197,142.0,141.94,2.11700095]
[1723958048055,22.6067,141.97,141.9,10.48627507]
[1723958048239,22.6067,141.97,141.91,8.28944399]
[1723958048551,22.6067,141.97,141.9,6.17215341]
[1723958048552,9.36,141.96,141.9,6.17215341]
[1723958048758,9.36,141.96,141.91,2.11753717]
[1723958048963,9.36,141.96,141.92,2.11738816]
[1723958049263,9.36,141.96,141.9,6.17440546]
[1723958049434,9.36,141.96,141.91,2.11740083]
[1723958049753,9.36,141.96,141.92,2.11740083]
[1723958049957,9.36,141.96,141.89,26.17633255]
[1723958050133,9.36,141.96,141.9,8.29373432]
[1723958050452,9.36,141.96,141.91,2.11740304]
[1723958050666,9.36,141.96,141.92,2.11740304]
[1723958050841,9.36,141.96,141.9,6.17665257]
[1723958051157,9.36,141.96,141.91,2.11740146]
[1723958051334,9.36,141.96,141.92,2.11740146]
[1723958051536,9.36,141.96,141.9,6.17665257]
[1723958051736,9.36,141.96,141.91,2.11740317]
[1723958051945,9.36,141.96,141.9,6.17665257]
[1723958052146,9.36,141.96,141.91,2.11741053]
[1723958052460,9.36,141.96,141.9,6.17665257]
[1723958052632,9.36,141.96,141.91,2.11744541]
[1723958052828,9.36,141.96,141.9,6.17665257]
[1723958053038,9.36,141.96,141.91,2.11745064]
[1723958053264,9.36,141.96,141.9,6.17665257]
[1723958053569,9.36,141.96,141.91,2.11747164]
[1723958053743,9.36,141.96,141.9,6.17665257]
[1723958053948,9.36,141.96,141.91,2.11747243]
[1723958054176,9.36,141.96,141.9,6.17730183]
[1723958054344,9.36,141.96,141.91,2.11747102]
[1723958054667,9.36,141.96,141.9,6.17730183]
[1723958054860,22.6067,141.97,141.91,3.52660272]
[1723958055062,22.6067,141.97,141.92,2.11744978]
[1723958055363,22.6067,141.97,141.91,7.58460898]
[1723958055364,22.6067,141.97,141.91,1.40915294]
[1723958055566,22.6067,141.97,141.92,2.11725387]
[1723958055767,22.6067,141.97,141.93,2.11725387]
[1723958056063,22.6067,141.97,141.91,7.58460898]
[1723958056239,22.6067,141.97,141.92,2.11725221]
[1723958056438,22.6067,141.97,141.93,2.11725221]
[1723958056659,22.6067,141.97,141.91,7.58460898]
[1723958056837,22.6067,141.97,141.92,2.11725379]
[1723958057040,22.6067,141.97,141.91,6.17545604]
[1723958057041,22.6067,141.97,141.93,2.11725379]
[1723958057347,22.6067,141.97,141.9,19.85439832]
[1723958057559,22.6067,141.97,141.91,8.29147053]
[1723958057744,22.6067,141.97,141.9,9.36]
[1723958057947,22.6067,141.97,141.91,28.29055434]
[1723958058144,22.6067,141.97,141.92,8.29055434]
[1723958058339,22.6067,141.97,141.93,2.11712812]
[1723958058546,22.6067,141.97,141.94,2.11712812]
[1723958058765,22.6067,141.97,141.92,6.17338185]
[1723958058951,22.6067,141.97,141.93,2.11712702]
[1723958059146,22.6067,141.97,141.94,2.11712702]
[1723958059466,22.6067,141.97,141.91,30.48785051]
[1723958059765,22.6067,141.97,141.92,8.29132554]
[1723958059938,22.6067,141.97,141.93,2.11719258]
[1723958060141,22.6067,141.97,141.92,6.17413296]
[1723958060348,22.6067,141.97,141.93,2.11723452]
[1723958060543,22.6067,141.97,141.91,20.0]
[1723958060770,22.6067,141.97,141.92,8.29186915]
[1723958060950,22.6067,141.97,141.93,2.1172358]
[1723958061158,22.6067,141.97,141.92,6.17463335]
[1723958061471,22.6067,141.97,141.93,2.11723452]
[1723958061676,22.6067,141.97,141.92,6.17463335]
[1723958061863,22.6067,141.97,141.92,6.17439345]
[1723958062172,22.6067,141.97,141.93,2.1172347]
[1723958062357,22.6067,141.97,141.92,6.17439345]
[1723958062559,22.6067,141.97,141.93,2.11719099]
[1723958062854,22.6067,141.97,141.91,20.0]
[1723958063058,22.6067,141.97,141.92,2.1173219]
[1723958063368,22.6067,141.97,141.93,2.1173219]
[1723958063567,22.6067,141.97,141.91,20.0]
[1723958063871,22.6067,141.97,141.92,2.11730088]
[1723958064044,22.6067,141.97,141.91,20.0]
[1723958064243,22.6067,141.97,141.92,2.1173505]
[1723958064441,22.6067,141.97,141.93,2.1173505]
[1723958064644,22.6067,141.97,141.9,30.48951142]
[1723958064852,22.6067,141.97,141.91,8.29265855]
[1723958065077,22.6067,141.97,141.9,30.48951142]
[1723958065078,22.6067,141.97,141.92,2.11729991]
[1723958065259,22.6067,141.97,141.93,2.11729991]
[1723958065457,22.6067,141.97,141.9,30.48951142]
[1723958065665,22.6067,141.97,141.91,8.29239294]
[1723958065862,22.6067,141.97,141.9,20.0]
[1723958066067,22.6067,141.97,141.91,8.29170728]
[1723958066378,22.6067,141.97,141.92,2.11727933]
[1723958066677,22.6067,141.97,141.93,2.11727933]
[1723958066876,9.36,141.96,141.89,10.4895465]
[1723958067048,9.36,141.96,141.9,28.2924768]
[1723958067247,9.36,141.96,141.91,2.11740863]
[1723958067447,9.36,141.96,141.92,2.11740863]
[1723958067678,9.36,141.96,141.9,20.0]
[1723958067877,9.36,141.96,141.91,8.29273339]
[1723958068173,9.36,141.96,141.92,2.11740784]
[1723958068378,22.6067,141.97,141.91,6.17532555]
[1723958068676,31.9667,141.97,141.92,2.11734086]
[1723958068880,31.9667,141.97,141.9,20.0]
[1723958068881,31.9667,141.97,141.93,2.11734086]
[1723958069085,31.9667,141.97,141.9,20.0]
[1723958069261,31.9667,141.97,141.91,8.2920277]
[1723958069463,31.9667,141.97,141.92,2.11729812]
[1723958069684,31.9667,141.97,141.93,2.11729812]
[1723958069889,31.9667,141.97,141.9,20.0]
[1723958070186,31.9667,141.97,141.91,8.29020295]
[1723958070357,31.9667,141.97,141.92,2.11729543]
[1723958070558,31.9667,141.97,141.93,2.11729543]
[1723958070769,31.9667,141.97,141.9,30.48691882]
[1723958070973,31.9667,141.97,141.91,8.28972796]
[1723958071283,31.9667,141.97,141.92,2.11725283]
[1723958071485,31.9667,141.97,141.93,2.11725283]
[1723958071655,31.9667,141.97,141.9,30.48691882]
[1723958071852,31.9667,141.97,141.91,8.28966042]
[1723958072077,31.9667,141.97,141.92,2.11725489]
[1723958072279,31.9667,141.97,141.93,2.11725489]
[1723958072280,22.6067,141.97,141.93,2.11725489]
[1723958072455,22.6067,141.97,141.9,50.05088977]
[1723958072651,22.6067,141.97,141.91,18.77637961]
[1723958072857,22.6067,141.97,141.92,8.28946079]
[1723958073061,22.6067,141.97,141.93,2.11722876]
[1723958073261,22.6067,141.97,141.92,6.17223203]
[1723958073562,22.6067,141.97,141.93,2.1172048]
[1723958073764,22.6067,141.97,141.92,6.17227432]
[1723958074097,22.6067,141.97,141.93,2.11723501]
[1723958074387,22.6067,141.97,141.9,39.84567427]
[1723958074584,22.6067,141.97,141.91,8.28938405]
[1723958074781,22.6067,141.97,141.92,8.28938405]
[1723958074975,22.6067,141.97,141.93,2.11723721]
[1723958075184,22.6067,141.97,141.91,6.17210972]
[1723958075490,22.6067,141.97,141.92,8.28934172]
[1723958075671,22.6067,141.97,141.93,2.117232]
[1723958075864,22.6067,141.97,141.91,6.17208123]
[1723958076186,22.6067,141.97,141.92,8.28931575]
[1723958076484,22.6067,141.97,141.93,2.11723452]
[1723958076793,22.6067,141.97,141.92,6.1724222]
[1723958077088,22.6067,141.97,141.93,2.11728738]
[1723958077391,22.6067,141.97,141.92,6.1724222]
[1723958077589,22.6067,141.97,141.93,2.11728769]
[1723958077884,22.6067,141.97,141.91,6.17248101]
[1723958078089,22.6067,141.97,141.92,8.28976729]
[1723958078296,22.6067,141.97,141.93,2.11728628]
[1723958078473,22.6067,141.97,141.91,6.17205816]
[1723958078673,31.9667,141.97,141.92,8.28933622]
[1723958078891,31.9667,141.97,141.93,2.11727806]
[1723958079195,31.9667,141.97,141.9,29.36]
[1723958079196,31.9667,141.97,141.9,50.04843134]
[1723958079372,31.9667,141.97,141.91,8.28997571]
[1723958079566,31.9667,141.97,141.92,8.28926653]
[1723958079762,31.9667,141.97,141.93,2.11735374]
[1723958079995,31.9667,141.97,141.94,2.11735374]
[1723958080165,31.9667,141.97,141.92,6.17177082]
[1723958080368,31.9667,141.97,141.93,2.11725074]
[1723958080599,31.9667,141.97,141.94,2.11725074]
[1723958080783,31.9667,141.97,141.91,10.20275707]
[1723958081094,31.9667,141.97,141.92,8.28800754]
[1723958081268,31.9667,141.97,141.93,2.11725734]
[1723958081590,31.9667,141.97,141.9,50.04843134]
[1723958081794,31.9667,141.97,141.91,8.28883505]
[1723958082096,9.36,141.95,141.92,2.11736289]
[1723958082282,9.36,141.95,141.9,6.17242447]
[1723958082469,9.36,141.95,141.91,2.11764201]
[1723958082671,9.36,141.95,141.89,6.17444973]
[1723958083012,0.12549,141.96,141.9,8.29212894]
[1723958083170,0.25098,141.96,141.91,2.11767921]
[1723958083371,0.25098,141.96,141.92,2.11767921]
[1723958083682,0.25098,141.96,141.9,6.17345296]
[1723958083893,0.25098,141.96,141.91,2.11757709]
[1723958084073,0.25098,141.96,141.89,10.20620108]
[1723958084074,5.18188,141.96,141.92,2.11757709]
[1723958084268,5.18188,141.96,141.88,10.48831844]
[1723958084473,5.18188,141.96,141.89,18.49739207]
[1723958084790,5.18188,141.96,141.9,8.29119099]
[1723958084967,5.18188,141.96,141.91,2.11759737]
[1723958085168,0.25098,141.96,141.92,2.11759737]
[1723958085484,0.25098,141.96,141.9,6.17429781]
[1723958085485,31.9667,141.97,141.93,2.11740209]
[1723958085689,22.6067,141.97,141.91,1.40908373]
[1723958085995,22.6067,141.97,141.92,2.11736784]
[1723958086298,22.6067,141.97,141.91,1.40908373]
[1723958086299,22.6067,141.97,141.93,2.11736784]
[1723958086508,22.6067,141.97,141.91,1.40908373]
[1723958086699,22.6067,141.97,141.92,8.28931919]
[1723958086882,22.6067,141.97,141.93,2.11737838]
[1723958087208,22.6067,141.97,141.92,6.17191535]
[1723958087411,22.6067,141.97,141.93,2.11728723]
[1723958087601,22.6067,141.97,141.92,6.17197417]
[1723958087768,22.6067,141.97,141.93,2.11729223]
[1723958087982,22.6067,141.97,141.92,6.17201299]
[1723958088189,22.6067,141.97,141.93,2.11729303]
[1723958088411,22.6067,141.97,141.94,2.11729303]
[1723958088688,22.6067,141.97,141.91,10.20237222]
[1723958088689,22.6067,141.97,141.93,6.17116024]
[1723958088906,22.6067,141.97,141.94,2.11722435]
[1723958089103,22.6067,141.97,141.95,2.11722435]
[1723958089409,22.6067,141.97,141.93,6.17032655]
[1723958089616,22.6067,141.97,141.94,2.11712019]
[1723958089780,22.6067,141.97,141.95,2.11712019]
[1723958089995,22.6067,141.97,141.93,6.17022853]
[1723958090203,22.6067,141.97,141.94,2.11712996]
[1723958090412,22.6067,141.97,141.95,2.11712996]
[1723958090717,22.6067,141.97,141.93,6.17037625]
[1723958090922,22.6067,141.97,141.94,2.11712996]
[1723958091216,22.6067,141.97,141.95,2.11712996]
[1723958091515,22.6067,141.97,141.93,6.17031562]
[1723958091693,22.6067,141.97,141.94,2.1171738]
[1723958091899,22.6067,141.97,141.95,2.1171738]
[1723958092101,22.6067,141.97,141.93,6.17016812]
[1723958092423,22.6067,141.97,141.94,2.11717349]
[1723958092602,22.6067,141.97,141.95,2.11717349]
[1723958092783,22.6067,141.97,141.93,6.16943112]
[1723958092986,22.6067,141.97,141.94,2.11721702]
[1723958093311,22.6067,141.97,141.92,10.20021058]
[1723958093613,22.6067,141.97,141.93,8.28699531]
[1723958093913,22.6067,141.97,141.94,2.11723422]
[1723958094116,22.6067,141.97,141.95,2.11722341]
[1723958094295,22.6067,141.97,141.93,6.1696276]
[1723958094488,22.6067,141.97,141.94,2.11722262]
[1723958094812,22.6067,141.97,141.95,2.11722262]
[1723958094999,22.6067,141.97,141.93,6.16920826]
[1723958095207,22.6067,141.97,141.94,2.11723501]
[1723958095393,22.6067,141.97,141.92,10.20021058]
[1723958095593,22.6067,141.97,141.93,8.28571777]
[1723958095796,22.6067,141.97,141.94,2.11723422]
[1723958096109,22.6067,141.97,141.95,2.11723422]
[1723958096290,22.6067,141.97,141.93,6.16667073]
[1723958096616,22.6067,141.97,141.94,8.28380131]
[1723958096908,22.6067,141.97,141.95,2.11713058]
[1723958097111,22.6067,141.97,141.93,6.16585181]
[1723958097321,22.6067,141.97,141.94,8.2829808]
[1723958097488,22.6067,141.97,141.95,2.11712899]
[1723958097691,22.6067,141.97,141.93,6.16582621]
[1723958097889,22.6067,141.97,141.94,8.28295489]
[1723958098103,22.6067,141.97,141.95,2.11712868]
[1723958098314,22.6067,141.97,141.93,6.16487758]
[1723958098509,22.6067,141.97,141.94,8.28200657]
[1723958098824,22.6067,141.97,141.95,2.11712899]
[1723958098985,22.6067,141.97,141.93,6.16459366]
[1723958099185,22.6067,141.97,141.94,8.28171343]
[1723958099409,22.6067,141.97,141.9,9.36]
[1723958099696,22.6067,141.97,141.92,10.47332045]
[1723958099898,22.6067,141.97,141.93,8.28216056]
[1723958100201,22.6067,141.97,141.94,8.28216056]
[1723958100409,22.6067,141.97,141.95,2.11713137]
[1723958100608,22.6067,141.97,141.93,6.16500595]
[1723958100786,22.6067,141.97,141.94,2.11713783]
[1723958100991,22.6067,141.97,141.95,2.11713783]
[1723958101314,22.6067,141.97,141.93,6.16560587]
[1723958101613,22.6067,141.97,141.94,2.11719179]
[1723958101818,22.6067,141.97,141.92,10.19156181]
[1723958102000,0.03,142.0,141.94,9.36]
[1723958102191,0.03,142.0,141.95,6.16515446]
[1723958102392,0.03,142.0,141.96,9.6904638]
[1723958102598,0.03,142.0,141.97,2.11670999]
[1723958102805,0.03,142.0,141.98,2.11670999]
[1723958103117,0.03,142.0,141.96,1.40856156]
[1723958103331,0.03,142.0,141.97,2.1167031]
[1723958103620,0.03,142.0,141.96,1.40856156]
[1723958103825,0.03,142.0,141.97,2.11669151]
[1723958103997,0.03,142.0,141.96,1.40856156]
[1723958104314,0.03,142.0,141.97,2.11669348]
[1723958104521,0.03,142.0,141.96,6.15403628]
[1723958104722,0.03,142.0,141.97,2.1167139]
[1723958105025,0.03,142.0,141.96,6.15287044]
[1723958105212,0.03,142.0,141.97,2.11670169]
[1723958105413,0.03,142.0,141.94,30.00398413]
[1723958105615,0.03,142.0,141.95,28.26843684]
[1723958105919,0.03,142.0,141.96,2.11670169]
[1723958106219,0.03,142.0,141.95,20.0]
[1723958106417,0.03,142.0,141.96,2.11670248]
[1723958106625,0.03,142.0,141.97,2.11670248]
[1723958106798,0.03,142.0,141.95,20.0]
[1723958106998,0.03,142.0,141.96,2.11670327]
[1723958107298,0.03,142.0,141.97,2.11670327]
[1723958107616,0.03,142.0,141.95,20.0]
[1723958107790,0.03,142.0,141.96,2.11670327]
[1723958107988,0.03,142.0,141.97,2.11670327]
[1723958108222,0.03,142.0,141.95,20.0]
[1723958108392,0.03,142.0,141.96,2.11670327]
[1723958108593,0.03,142.0,141.97,3.52525282]
[1723958108818,0.03,142.0,141.98,11.47670327]
[1723958109013,0.03,142.0,141.99,3.52496259]
[1723958109214,0.03,142.0,141.99,1.40825932]
[1723958109594,0.03,142.0,141.98,9.36]
[1723958110928,0.03,142.0,141.99,1.40822365]
[1723958111308,0.03,142.0,141.98,9.36]
[1723958112223,0.03,142.0,141.98,11.4763771]
[1723958112524,0.03,142.0,141.98,9.36]
[1723958112722,0.03,142.0,141.99,45.37647]
[1723958112895,0.03,142.0,141.99,45.50196]
[1723958113297,0.03,142.0,141.99,65.50196]
[1723958116032,0.03,142.0,141.99,20.0]
[1723958116207,0.03,142.0,141.97,22.11636692]
[1723958116406,0.03,142.0,141.98,0.12549]
[1723958117319,0.03,142.0,141.98,0.37647]
[1723958119726,0.03,142.0,141.98,45.37647]
[1723958119909,0.03,142.0,141.99,0.12549]
[1723958120221,0.03,142.0,141.99,29.48549]
[1723958120402,0.03,142.0,141.99,74.86196]
[1723958122024,0.8437933,142.08,141.99,111.18376]
[1723958122219,0.8437933,142.08,142.01,0.12549]
[1723958122438,0.8437933,142.08,142.03,9.36]
[1723958122737,0.8437933,142.08,142.04,0.37647]
[1723958123325,0.8437933,142.08,142.05,9.36]
[1723958126333,0.8437933,142.08,142.06,1.5329528]
[1723958128232,0.8437933,142.08,142.0,9.32200445]
[1723958128433,0.8437933,142.08,142.02,9.36]
[1723958129143,0.8437933,142.08,141.99,16.3218]
[1723958129341,16.3434933,142.08,142.0,9.36]
[1723958129506,16.4818,142.07,141.98,9.36]
[1723958129902,16.4818,142.07,141.96,28.15713044]
[1723958130107,16.4818,142.07,141.96,7.35903338]
[1723958130327,0.25098,142.06,141.92,47.79252864]
[1723958130526,9.36,142.03,141.95,9.36]
[1723958131038,9.36,142.05,141.95,10.76836881]
[1723958131334,9.36,142.05,141.97,9.36]
[1723958131903,9.36,142.05,141.96,54.48549]
[1723958132118,9.36,142.05,141.97,20.0]
[1723958132306,14.2878,142.05,141.97,20.0]
[1723958132520,9.36,142.05,141.97,20.0]
[1723958134213,9.36,142.05,141.98,54.73647]
[1723958134419,21.4089,142.07,141.98,54.73647]
[1723958134420,30.7689,142.07,141.98,54.73647]
[1723958134620,16.4818,142.07,142.0,9.36]
[1723958135930,16.4818,142.07,142.01,0.12549]
[1723958136508,25.8418,142.07,141.98,45.25098]
[1723958136708,25.8418,142.07,141.99,20.25098]
[1723958137536,25.8418,142.07,141.97,0.12549]
[1723958137745,16.4818,142.07,141.96,20.0]
[1723958137912,4.9282,142.04,141.95,2.11626577]
[1723958138234,6.1397,142.03,141.96,2.11626577]
[1723958138642,6.1397,142.03,141.96,2.11625831]
[1723958139241,6.1397,142.03,141.96,22.11625831]
[1723958141152,6.1397,142.03,141.95,31.47625831]
[1723958141337,6.1397,142.03,141.96,2.11625831]
[1723958141526,6.1397,142.03,141.97,2.11625831]
[1723958141726,6.1397,142.03,141.96,2.11625831]
[1723958141935,6.1397,142.03,141.97,2.11625831]
[1723958142128,6.1397,142.03,141.96,2.11625831]
[1723958142352,6.1397,142.03,141.97,2.11625831]
[1723958142649,6.1397,142.03,141.96,2.11625831]
[1723958142955,6.1397,142.03,141.97,2.11625831]
[1723958143162,6.1397,142.03,141.96,2.11625831]
[1723958143457,6.1397,142.03,141.97,2.11625831]
[1723958143654,6.1397,142.03,141.96,2.11625831]
[1723958143858,6.1397,142.03,141.97,2.11625831]
[1723958144149,6.1397,142.03,141.96,2.11625831]
[1723958144361,6.1397,142.03,141.97,2.11625831]
[1723958144528,6.1397,142.03,141.98,2.11625831]
[1723958144727,6.1397,142.03,141.95,35.88337359]
[1723958144728,16.4818,142.02,141.96,2.11625831]
[1723958144951,16.4818,142.02,141.97,2.11625831]
[1723958145261,16.4818,142.02,141.96,2.11654268]
[1723958145559,21.4107,142.02,141.96,2.11654268]
[1723958145747,21.4107,142.02,141.95,2.11654268]
[1723958146051,21.4107,142.02,141.95,2.11674584]
[1723958146629,14.2892,142.01,141.95,2.11674584]
[1723958146967,4.9295,142.0,141.92,16.7234]
[1723958147257,4.9295,142.0,141.93,2.1168579]
[1723958147456,4.9295,142.0,141.94,2.1168579]
[1723958147662,4.9295,142.0,141.92,15.50931756]
[1723958147953,14.2892,142.01,141.93,2.11685948]
[1723958148170,4.9295,142.0,141.94,2.11685948]
[1723958148468,5.05539,141.99,141.93,2.11694564]
[1723958148671,14.41539,141.99,141.91,6.14931756]
[1723958148831,14.2899,141.99,141.92,2.11702883]
[1723958149031,14.2899,141.99,141.93,2.11702883]
[1723958149260,16.0986,141.97,141.91,2.11702866]
[1723958149559,30.3892,141.97,141.92,2.11702866]
[1723958149740,30.3892,141.97,141.9,2.11702866]
[1723958150061,30.3892,141.97,141.91,2.11702866]
[1723958150262,30.3892,141.97,141.9,2.11702866]
[1723958150464,30.3892,141.97,141.91,2.11702866]
[1723958150659,30.3892,141.97,141.88,23.96358888]
[1723958150660,30.3892,141.97,141.89,2.1172584]
[1723958150864,30.3892,141.97,141.9,2.1172584]
[1723958151161,30.3892,141.97,141.88,23.97505414]
[1723958151162,30.3892,141.97,141.91,2.1172584]
[1723958151463,30.3892,141.97,141.89,2.1172584]
[1723958151636,30.3892,141.97,141.9,2.1172584]
[1723958151835,30.3892,141.97,141.91,2.1172584]
[1723958152152,30.3892,141.97,141.89,2.1172584]
[1723958152458,30.3892,141.97,141.9,2.1172584]
[1723958152661,30.3892,141.97,141.89,2.1172584]
[1723958152841,30.3892,141.97,141.9,2.1172584]
[1723958153036,6.2143,141.96,141.89,2.1172584]
[1723958153237,6.2143,141.96,141.9,2.1172584]
[1723958153547,6.2143,141.96,141.89,2.1172584]
[1723958153747,6.2143,141.96,141.9,2.1172584]
[1723958153956,6.2143,141.96,141.89,2.1172584]
[1723958154542,6.2143,141.96,141.89,2.11727618]